fUST/lending_fUST_20250522
["ID","MTS","AMOUNT","RATE_DAILY","PERIOD"]
[361984445,1747924244221,-510.18,0.00021917,2]
[361984446,1747924244230,-430.0,0.00021917,2]
[361984447,1747924244240,-254.09258345,0.00021917,2]
[361984448,1747924244250,-430.0,0.00021917,2]
[361984449,1747924244259,-430.0,0.00021917,2]
[361984450,1747924244269,-430.0,0.00021917,2]
[361984451,1747924244279,-430.0,0.00021917,2]
[361984452,1747924244288,-576.57092278,0.00021917,2]
[361984453,1747924244298,-430.0,0.00021917,2]
[361984454,1747924244310,-151.0,0.00021917,2]
[361984455,1747924244319,-430.0,0.00021917,2]
[361984456,1747924244329,-430.0,0.00021917,2]
[361984457,1747924244340,-246.253327,0.00021918,2]
[361984458,1747924244349,-500.0,0.00021918,2]
[361984459,1747924244359,-500.0,0.00021918,2]
[361984460,1747924244369,-500.0,0.00021918,2]
[361984461,1747924244378,-500.0,0.00021918,2]
[361984463,1747924244388,-500.0,0.00021918,2]
[361984464,1747924244398,-500.0,0.00021918,2]
[361984465,1747924244408,-500.0,0.00021918,2]
[361984466,1747924244417,-500.0,0.00021918,2]
[361984467,1747924244427,-500.0,0.00021918,2]
[361984468,1747924244436,-500.0,0.00021918,2]
[361984469,1747924244446,-500.0,0.00021918,2]
[361984470,1747924244456,-606.96655515,0.00021918,2]
[361984471,1747924244466,-500.0,0.00021918,2]
[361984472,1747924244475,-500.0,0.00021918,2]
[361984473,1747924244485,-500.0,0.00021918,2]
[361984474,1747924244496,-500.0,0.00021918,2]
[361984475,1747924244507,-2143.4565482,0.00021969,6]
[361984476,1747924244517,-500.0,0.00021973,2]
[361984477,1747924244526,-500.0,0.00021973,2]
[361984478,1747924244536,-500.0,0.00021973,2]
[361984479,1747924244547,-500.0,0.00021973,2]
[361984480,1747924244558,-500.0,0.00021973,2]
[361984481,1747924244569,-358.62764625,0.00021973,2]
[361984482,1747924244579,-500.57666669,0.00021973,2]
[361984483,1747924244590,-725.5858414,0.00022,2]
[361984484,1747924244600,-1000.0,0.00022,120]
[361984485,1747924244610,-533.0,0.00022,2]
[361984486,1747924244619,-167.0,0.00022,2]
[361984488,1747924244628,-1443.628192,0.00022015,2]
[361984490,1747924244638,-297.805,0.00022017,2]
[361984492,1747924244648,-1083.45885405,0.00022091,2]
[361984494,1747924244659,-2143.4565482,0.00022141,6]
[361984496,1747924244668,-151.0,0.00022159,7]
[361984498,1747924244680,-151.0,0.00022159,7]
[361984500,1747924244690,-152.833222,0.00022159,7]
[361984502,1747924244699,-152.833222,0.00022159,7]
[361984504,1747924244708,-151.0,0.00022159,7]
[361984506,1747924244718,-151.0,0.00022159,7]
[361984508,1747924244728,-151.0,0.00022168,7]
[361984509,1747924244738,-151.0,0.00022168,7]
[361984511,1747924244747,-199.373867,0.00022168,7]
[361984513,1747924244757,-151.0,0.00022168,7]
[361984516,1747924244767,-185.951627,0.00022168,7]
[361984518,1747924244777,-167.049659,0.00022168,7]
[361984520,1747924244786,-151.0,0.00022168,7]
[361984522,1747924244795,-185.951627,0.00022168,7]
[361984524,1747924244806,-167.049659,0.00022168,7]
[361984526,1747924244815,-151.0,0.00022168,7]
[361984528,1747924244825,-151.0,0.00022168,7]
[361984530,1747924244835,-348.701773,0.00022168,7]
[361984532,1747924244845,-348.701773,0.00022168,7]
[361984534,1747924244854,-1712.504595,0.00022168,7]
[361984536,1747924244863,-1712.504595,0.00022168,7]
[361984538,1747924244873,-407.006601,0.00022168,7]
[361984540,1747924244882,-407.006601,0.00022168,7]
[361984542,1747924244891,-493.347099,0.00022168,7]
[361984544,1747924244900,-493.347099,0.00022168,7]
[361984546,1747924244910,-709.901618,0.00022168,7]
[361984548,1747924244919,-709.901618,0.00022168,7]
[361984550,1747924244929,-255.660208,0.00022168,7]
[361984552,1747924244939,-255.660208,0.00022168,7]
[361984554,1747924244948,-307.735337,0.00022168,7]
[361984556,1747924244957,-307.735337,0.00022168,7]
[361984558,1747924244968,-160.0,0.00022168,2]
[361984560,1747924244977,-160.0,0.00022168,2]
[361984562,1747924244987,-12645.25887003,0.00022168,2]
[361984564,1747924244996,-127.70342601,0.00022168,2]
[361984571,1747924245039,-430.0,0.00021917,2]
[361984572,1747924245048,-84.74668049,0.00022168,2]
[361984573,1747924245057,-160.0,0.00022168,2]
[361984574,1747924245066,-160.0,0.00022168,2]
[361984576,1747924245076,-126.55413769,0.00022168,2]
[361984641,1747924245672,-273.97429641,0.00021917,2]
[361984675,1747924245993,-868.51695959,0.00021917,2]
[361984676,1747924246003,-112.80622641,0.00021917,2]
[361984677,1747924246014,-38.19377359,0.00021917,2]
[361984678,1747924246024,-1142.491256,0.00021917,2]
[361984679,1747924246034,-430.0,0.00021917,2]
[361984681,1747924246043,-151.0,0.00022159,7]
[361984683,1747924246052,-33.44586231,0.00022168,2]
[361984685,1747924246063,-160.0,0.00022168,2]
[361984687,1747924246072,-160.0,0.00022168,2]
[361984689,1747924246082,-160.0,0.00022168,2]
[361984691,1747924246091,-422.78357425,0.00022168,2]
[361984693,1747924246101,-894.64583333,0.00022168,2]
[361984696,1747924246110,-160.0,0.00022168,2]
[361984698,1747924246119,-549.40032849,0.00022173,2]
[361984700,1747924246129,-500.62938688,0.00022173,2]
[361984702,1747924246139,-500.28836648,0.00022173,2]
[361984703,1747924246148,-506.04841963,0.00022173,2]
[361984704,1747924246158,-500.0,0.00022173,2]
[361984705,1747924246167,-188.317603,0.00022191,7]
[361984706,1747924246177,-188.317603,0.00022191,7]
[361984707,1747924246186,-188.317603,0.00022191,7]
[361984708,1747924246196,-188.317603,0.00022191,7]
[361984709,1747924246205,-188.317603,0.00022191,7]
[361984710,1747924246215,-188.317603,0.00022191,7]
[361984711,1747924246224,-188.317603,0.00022191,7]
[361984712,1747924246234,-188.317602,0.00022191,7]
[361984713,1747924246244,-268.325137,0.00022191,7]
[361984714,1747924246253,-151.0,0.00022191,7]
[361984715,1747924246263,-151.0,0.00022191,7]
[361984716,1747924246272,-151.0,0.00022191,7]
[361984718,1747924246282,-151.0,0.00022191,7]
[361984720,1747924246292,-430.0,0.00022191,2]
[361984722,1747924246302,-151.0,0.00022191,7]
[361984724,1747924246314,-430.0,0.00022191,2]
[361984726,1747924246324,-430.0,0.00022191,2]
[361984728,1747924246333,-430.0,0.00022191,2]
[361984730,1747924246343,-430.0,0.00022191,2]
[361984732,1747924246352,-290.0,0.00022191,2]
[361984734,1747924246362,-430.0,0.00022191,2]
[361984736,1747924246371,-430.0,0.00022191,2]
[361984738,1747924246380,-430.0,0.00022191,2]
[361984739,1747924246389,-430.0,0.00022191,2]
[361984740,1747924246399,-430.0,0.00022191,2]
[361984741,1747924246408,-430.0,0.00022191,2]
[361984742,1747924246417,-430.0,0.00022191,2]
[361984743,1747924246427,-430.0,0.00022191,2]
[361984744,1747924246436,-430.0,0.00022191,2]
[361984745,1747924246446,-537.39702192,0.00022191,2]
[361984746,1747924246455,-430.0,0.00022191,2]
[361984747,1747924246465,-430.0,0.00022191,2]
[361984748,1747924246474,-430.0,0.00022191,2]
[361984749,1747924246483,-430.0,0.00022191,2]
[361984750,1747924246493,-430.0,0.00022191,2]
[361984751,1747924246505,-430.0,0.00022191,2]
[361984752,1747924246515,-567.93348212,0.00022191,2]
[361984753,1747924246524,-430.0,0.00022191,2]
[361984754,1747924246533,-430.0,0.00022191,2]
[361984755,1747924246545,-430.0,0.00022191,2]
[361984756,1747924246554,-430.0,0.00022191,2]
[361984757,1747924246567,-450.0,0.00022191,2]
[361984758,1747924246578,-430.0,0.00022191,2]
[361984759,1747924246588,-151.0,0.00022191,7]
[361984760,1747924246597,-430.0,0.00022191,2]
[361984761,1747924246607,-430.0,0.00022191,2]
[361984762,1747924246616,-151.0,0.00022191,7]
[361984763,1747924246626,-430.0,0.00022191,2]
[361984764,1747924246635,-430.0,0.00022191,2]
[361984765,1747924246645,-430.0,0.00022191,2]
[361984766,1747924246655,-151.0,0.00022191,2]
[361984767,1747924246665,-430.0,0.00022191,2]
[361984768,1747924246675,-430.0,0.00022191,2]
[361984769,1747924246685,-430.0,0.00022191,2]
[361984770,1747924246695,-430.0,0.00022191,2]
[361984771,1747924246705,-490.79512,0.00022191,7]
[361984772,1747924246716,-490.79512,0.00022191,7]
[361984773,1747924246727,-430.0,0.00022191,2]
[361984774,1747924246736,-152.118194,0.00022191,7]
[361984775,1747924246745,-409.40679874,0.00022191,2]
[361984776,1747924246755,-430.0,0.00022191,2]
[361984777,1747924246764,-430.0,0.00022191,2]
[361984778,1747924246774,-450.0,0.00022191,2]
[361984779,1747924246784,-430.0,0.00022191,2]
[361984780,1747924246794,-430.0,0.00022191,2]
[361984781,1747924246803,-430.0,0.00022191,2]
[361984782,1747924246816,-369.33184388,0.00022191,2]
[361984783,1747924246825,-430.0,0.00022191,2]
[361984784,1747924246835,-475.23,0.00022191,2]
[361984785,1747924246844,-430.0,0.00022191,2]
[361984786,1747924246854,-430.0,0.00022191,2]
[361984787,1747924246863,-430.0,0.00022191,2]
[361984788,1747924246872,-549.95104839,0.00022191,2]
[361984789,1747924246882,-541.22,0.00022191,2]
[361984790,1747924246891,-430.0,0.00022191,2]
[361984791,1747924246901,-151.0,0.00022191,7]
[361984792,1747924246910,-151.0,0.00022191,7]
[361984793,1747924246919,-430.0,0.00022191,2]
[361984794,1747924246929,-450.0,0.00022191,2]
[361984795,1747924246938,-172.540146,0.00022191,7]
[361984796,1747924246948,-39.28036319,0.00022191,7]
[361984797,1747924247364,-133.25978281,0.00022191,7]
[361984798,1747924247374,-172.540146,0.00022191,7]
[361984799,1747924247383,-172.540146,0.00022191,7]
[361984800,1747924247393,-250.0,0.00022191,2]
[361984801,1747924247403,-230.0,0.00022191,2]
[361984802,1747924247413,-430.0,0.00022191,2]
[361984803,1747924247423,-553.33134709,0.00022191,2]
[361984804,1747924247433,-430.0,0.00022191,2]
[361984805,1747924247443,-430.0,0.00022191,2]
[361984806,1747924247453,-430.0,0.00022191,2]
[361984807,1747924247462,-430.0,0.00022191,2]
[361984808,1747924247472,-430.0,0.00022191,2]
[361984809,1747924247481,-430.0,0.00022191,2]
[361984810,1747924247492,-430.0,0.00022191,2]
[361984811,1747924247506,-151.0,0.00022191,7]
[361984812,1747924247516,-257.530486,0.00022191,7]
[361984813,1747924247526,-430.0,0.00022191,2]
[361984814,1747924247536,-430.0,0.00022191,2]
[361984816,1747924247548,-430.0,0.00022191,2]
[361984818,1747924247560,-556.00428834,0.00022191,2]
[361984819,1747924247572,-151.0,0.00022191,7]
[361984820,1747924247582,-151.0,0.00022191,7]
[361984821,1747924247592,-151.0,0.00022191,7]
[361984822,1747924247602,-151.0,0.00022191,7]
[361984823,1747924247612,-430.0,0.00022191,2]
[361984824,1747924247621,-430.0,0.00022191,2]
[361984825,1747924247631,-430.0,0.00022191,2]
[361984826,1747924247640,-430.0,0.00022191,2]
[361984827,1747924247651,-379.306574,0.00022191,7]
[361984828,1747924247661,-379.306574,0.00022191,7]
[361984829,1747924247670,-430.0,0.00022191,2]
[361984831,1747924247680,-379.306574,0.00022191,7]
[361984833,1747924247689,-379.306574,0.00022191,7]
[361984835,1747924247699,-1827.981126,0.00022191,7]
[361984836,1747924247708,-1827.981126,0.00022191,7]
[361984837,1747924247718,-151.0,0.00022191,7]
[361984838,1747924247728,-151.0,0.00022191,7]
[361984839,1747924247738,-161.650244,0.00022191,7]
[361984840,1747924247747,-300.773869,0.00022191,7]
[361984841,1747924247757,-300.773869,0.00022191,7]
[361984842,1747924247766,-430.0,0.00022191,2]
[361984843,1747924247776,-300.773869,0.00022191,7]
[361984844,1747924247788,-300.773869,0.00022191,7]
[361984845,1747924247799,-298.32954171,0.00022191,2]
[361984846,1747924247811,-1222.141002,0.00022191,7]
[361984848,1747924247821,-1222.141002,0.00022191,7]
[361984850,1747924247831,-450.0,0.00022191,2]
[361984852,1747924247842,-1222.141002,0.00022191,7]
[361984854,1747924247852,-967.93907661,0.00022191,7]
[361984857,1747924247867,-254.20192539,0.00022191,7]
[361984859,1747924247877,-370.820794,0.00022191,7]
[361984861,1747924247887,-370.820794,0.00022191,7]
[361984863,1747924247901,-151.0,0.00022191,7]
[361984865,1747924247912,-151.0,0.00022191,7]
[361984867,1747924247923,-157.326013,0.00022191,7]
[361984869,1747924247933,-151.0,0.00022191,7]
[361984871,1747924247944,-370.820794,0.00022191,7]
[361984873,1747924247954,-370.820794,0.00022191,7]
[361984875,1747924247965,-151.0,0.00022191,7]
[361984877,1747924247976,-151.0,0.00022191,7]
[361984879,1747924247986,-151.0,0.00022191,7]
[361984881,1747924247996,-177.083587,0.00022191,7]
[361984883,1747924248006,-450.0,0.00022191,2]
[361984885,1747924248017,-430.0,0.00022191,2]
[361984887,1747924248027,-151.0,0.00022191,7]
[361984889,1747924248037,-151.0,0.00022191,7]
[361984891,1747924248046,-151.0,0.00022191,7]
[361984893,1747924248056,-450.0,0.00022191,2]
[361984895,1747924248068,-151.0,0.00022191,7]
[361984897,1747924248079,-151.0,0.00022191,7]
[361984899,1747924248089,-151.0,0.00022191,7]
[361984901,1747924248099,-430.0,0.00022191,2]
[361984903,1747924248110,-151.0,0.00022191,7]
[361984905,1747924248120,-151.0,0.00022191,7]
[361984907,1747924248131,-470.0,0.00022191,2]
[361984909,1747924248143,-430.0,0.00022191,2]
[361984911,1747924248155,-151.0,0.00022191,7]
[361984913,1747924248166,-151.0,0.00022191,7]
[361984915,1747924248177,-430.0,0.00022191,2]
[361984917,1747924248188,-430.0,0.00022191,2]
[361984919,1747924248199,-430.0,0.00022191,2]
[361984921,1747924248210,-430.0,0.00022191,2]
[361984923,1747924248221,-430.0,0.00022191,2]
[361984925,1747924248231,-430.0,0.00022191,2]
[361984927,1747924248241,-430.0,0.00022191,2]
[361984929,1747924248251,-470.0,0.00022191,2]
[361984931,1747924248262,-430.0,0.00022191,2]
[361984933,1747924248272,-151.0,0.00022191,7]
[361984935,1747924248282,-430.0,0.00022191,2]
[361984937,1747924248292,-151.0,0.00022191,7]
[361984939,1747924248302,-1166.05,0.00022191,2]
[361984941,1747924248317,-151.0,0.00022191,7]
[361984943,1747924248326,-151.0,0.00022191,7]
[361984945,1747924248336,-454.99217898,0.00022191,2]
[361984947,1747924248346,-640.19,0.00022191,2]
[361984949,1747924248357,-151.0,0.00022191,7]
[361984951,1747924248366,-151.0,0.00022191,7]
[361984953,1747924248376,-456.89,0.00022191,2]
[361984955,1747924248385,-151.0,0.00022191,7]
[361984957,1747924248395,-151.0,0.00022191,7]
[361984959,1747924248405,-430.0,0.00022191,2]
[361984961,1747924248416,-151.0,0.00022191,7]
[361984963,1747924248426,-151.0,0.00022191,7]
[361984965,1747924248437,-151.0,0.00022191,7]
[361984967,1747924248446,-151.0,0.00022191,7]
[361984969,1747924248456,-430.0,0.00022191,2]
[361984971,1747924248466,-151.0,0.00022191,7]
[361984973,1747924248476,-151.0,0.00022191,7]
[361984975,1747924248486,-151.0,0.00022191,7]
[361984977,1747924248498,-151.0,0.00022191,7]
[361984979,1747924248509,-430.0,0.00022191,2]
[361984981,1747924248519,-151.0,0.00022191,7]
[361984983,1747924248528,-182.765252,0.00022191,7]
[361984985,1747924248540,-388.85673007,0.00022191,2]
[361984988,1747924248558,-897.16326993,0.00022191,2]
[361984990,1747924248569,-430.0,0.00022191,2]
[361984992,1747924248578,-430.0,0.00022191,2]
[361984994,1747924248589,-166.481318,0.00022191,7]
[361984996,1747924248599,-166.481318,0.00022191,7]
[361984998,1747924248608,-166.481318,0.00022191,7]
[361985000,1747924248618,-166.481318,0.00022191,7]
[361985002,1747924248627,-151.0,0.00022191,7]
[361985004,1747924248637,-151.0,0.00022191,7]
[361985006,1747924248646,-165.820572,0.00022191,2]
[361985007,1747924248656,-165.820572,0.00022191,2]
[361985008,1747924248666,-329.45105904,0.00022191,2]
[361985009,1747924248676,-165.820572,0.00022191,2]
[361985010,1747924248686,-165.820572,0.00022191,2]
[361985011,1747924248695,-617.913254,0.00022191,7]
[361985012,1747924248706,-617.913254,0.00022191,7]
[361985013,1747924248716,-430.0,0.00022191,2]
[361985014,1747924248728,-430.0,0.00022191,2]
[361985015,1747924248737,-151.0,0.00022191,7]
[361985016,1747924248747,-151.0,0.00022191,7]
[361985017,1747924248756,-430.0,0.00022191,2]
[361985018,1747924248766,-430.0,0.00022191,2]
[361985019,1747924248777,-151.0,0.00022191,7]
[361985020,1747924248786,-151.0,0.00022191,7]
[361985021,1747924248796,-430.0,0.00022191,2]
[361985022,1747924248805,-522.55939658,0.00022191,2]
[361985023,1747924248819,-336.127501,0.00022191,7]
[361985024,1747924248829,-336.127501,0.00022191,7]
[361985025,1747924248839,-430.0,0.00022191,2]
[361985026,1747924248849,-430.0,0.00022191,2]
[361985027,1747924248859,-430.0,0.00022191,2]
[361985028,1747924248869,-336.127501,0.00022191,7]
[361985029,1747924248880,-336.127501,0.00022191,7]
[361985030,1747924248890,-151.0,0.00022191,7]
[361985031,1747924248899,-151.0,0.00022191,7]
[361985032,1747924248909,-357.50042511,0.00022191,2]
[361985365,1747924714704,165.416248,0.00013699,2]
[361985366,1747925021826,3517.0,0.0002,120]
[361985379,1747925367146,2752.0,0.0002,120]
[361985417,1747925431908,-5000.0,0.00016829,2]
[361985419,1747925431920,-1200.0,0.00016999,2]
[361985421,1747925431933,-9417.98168669,0.00017,2]
[361985423,1747925431943,-300.0,0.00018152,2]
[361985425,1747925431953,-813.665196,0.00018153,2]
[361985428,1747925431964,-517.0,0.00018659,2]
[361985431,1747925431975,-166.0,0.00018685,3]
[361985434,1747925431985,-20000.00011001,0.00018908,7]
[361985437,1747925431996,-300.0,0.00019098,2]
[361985439,1747925432006,-9957.65223714,0.00019099,2]
[361985442,1747925432020,-14942.34776286,0.00019099,2]
[361985444,1747925432030,-9770.0088971,0.0001912,2]
[361985446,1747925432040,-420.0,0.00019803,2]
[361985448,1747925432050,-152.0,0.00019863,2]
[361985450,1747925432060,-553.75673134,0.00019999,2]
[361985452,1747925432071,-500.0,0.00019999,2]
[361985454,1747925432081,-263.13649773,0.00019999,2]
[361985456,1747925432092,-500.0,0.00019999,2]
[361985458,1747925432102,-500.0,0.00019999,2]
[361985460,1747925432112,-36386.11847623,0.0002,2]
[361985462,1747925432122,-4572.14736037,0.0002,3]
[361985464,1747925432132,-325.6,0.0002,3]
[361985466,1747925432142,-500.0,0.0002,3]
[361985468,1747925432152,-500.0,0.0002,2]
[361985471,1747925432163,-181.85794244,0.0002,7]
[361985473,1747925432176,-52147.0839895,0.0002,7]
[361985807,1747925437843,-300.0,0.00019999,2]
[361985809,1747925437854,-3033.6,0.0002,7]
[361985812,1747925437870,-8696.39908166,0.0002,7]
[361985814,1747925437882,-860.40482755,0.0002,7]
[361985819,1747925437925,-466619.47391783,0.0002,7]
[361986571,1747925446000,-422.748628,0.00019799,2]
[361986572,1747925446015,-548.44194169,0.00019799,2]
[361986573,1747925446027,-4028.80943031,0.00019799,2]
[361986574,1747925446036,-4440.99180035,0.0002,7]
[361986575,1747925446046,-671.91799834,0.000203,3]
[361986576,1747925446057,-2573.64962461,0.000203,3]
[361986577,1747925446066,-113.56822538,0.000203,3]
[361986578,1747925446077,-620.17990815,0.000203,3]
[361986823,1747925494739,152.72,0.00016,3]
[361986824,1747925855792,158.679125,0.00013699,2]
[361986827,1747926290611,158.06,0.00016,60]
[361986874,1747926632154,-3895.44109565,0.00017318,2]
[361986896,1747926632339,-1104.55890435,0.00017318,2]
[361986898,1747926632349,-259.9289717,0.00017492,2]
[361986901,1747926632359,-300.0,0.00017512,2]
[361986903,1747926632369,-1200.0,0.00017512,2]
[361986905,1747926632379,-350.36920305,0.00017513,2]
[361986907,1747926632389,-200.53985225,0.00017769,2]
[361986909,1747926632400,-300.0,0.00017867,2]
[361986912,1747926632409,-300.0,0.00017867,2]
[361986915,1747926632419,-300.0,0.00017867,2]
[361986918,1747926632428,-50000.0,0.00017868,2]
[361986921,1747926632438,-3869.28148394,0.0001787,2]
[361986924,1747926632452,-21030.71851606,0.0001787,2]
[361986927,1747926632462,-500.0,0.00017888,2]
[361986931,1747926632471,-500.0,0.00017888,2]
[361986934,1747926632481,-305.8969722,0.00017888,2]
[361986937,1747926632490,-500.0,0.00017888,2]
[361986941,1747926632500,-500.0,0.00017888,2]
[361986944,1747926632510,-409.19554841,0.00017888,2]
[361986947,1747926632521,-500.0,0.00017889,2]
[361986950,1747926632531,-18412.2708056,0.00017889,2]
[361986953,1747926632540,-160.0,0.00018712,3]
[361986956,1747926632550,-10000.0,0.00018738,2]
[361986959,1747926632559,-278.0766187,0.00018959,2]
[361986962,1747926632569,-178.806015,0.00018974,2]
[361986965,1747926632578,-250.0,0.00019041,2]
[361986968,1747926632588,-500.57666669,0.000191,2]
[361986971,1747926632598,-358.62764625,0.000191,2]
[361986974,1747926632607,-500.0,0.000191,2]
[361986977,1747926632617,-500.0,0.000191,2]
[361986980,1747926632626,-625.56290238,0.000191,2]
[361986982,1747926632635,-626.92197628,0.000191,2]
[361986985,1747926632645,-500.0,0.000191,2]
[361986987,1747926632655,-420.0,0.00019117,2]
[361986991,1747926632664,-1680.0,0.00019211,2]
[361986994,1747926632674,-8469.01237038,0.00019345,2]
[361986996,1747926632683,-239.032562,0.00019387,2]
[361986999,1747926632693,-231.0758996,0.00019388,2]
[361987002,1747926632702,-420.0,0.00019497,2]
[361987004,1747926632712,-420.0,0.00019497,2]
[361987007,1747926632723,-420.0,0.00019498,2]
[361987010,1747926632733,-500.0,0.00019648,2]
[361987012,1747926632743,-1000.0,0.00019648,2]
[361987015,1747926632752,-481.20158423,0.00019663,2]
[361987017,1747926632762,-481.20158424,0.00019955,2]
[361987020,1747926632773,-160.0,0.00019999,2]
[361987023,1747926632783,-15872.03595602,0.00019999,2]
[361987025,1747926632793,-5139.77395913,0.0002,2]
[361987027,1747926632803,-3500.0,0.0002,7]
[361987030,1747926632814,-5000.0,0.0002,30]
[361987032,1747926632825,-6799.95335524,0.0002,5]
[361987034,1747926632835,-506.94147846,0.00020196,2]
[361987036,1747926632845,-166.0,0.00020274,2]
[361987038,1747926632855,-315.0,0.000203,2]
[361987040,1747926632865,-151.0,0.000203,2]
[361987042,1747926632875,-315.0,0.000203,2]
[361987044,1747926632885,-315.0,0.000203,2]
[361987046,1747926632897,-315.0,0.000203,2]
[361987048,1747926632906,-315.0,0.000203,2]
[361987050,1747926632916,-315.0,0.000203,2]
[361987052,1747926632927,-315.0,0.000203,2]
[361987054,1747926632936,-315.0,0.000203,2]
[361987056,1747926632946,-315.0,0.000203,2]
[361987058,1747926632956,-315.0,0.000203,2]
[361987060,1747926632966,-315.0,0.000203,2]
[361987062,1747926632976,-315.0,0.000203,2]
[361987064,1747926632986,-315.0,0.000203,2]
[361987066,1747926632995,-315.0,0.000203,2]
[361987068,1747926633006,-315.0,0.000203,2]
[361987070,1747926633016,-315.0,0.000203,2]
[361987072,1747926633026,-315.0,0.000203,2]
[361987074,1747926633036,-315.0,0.000203,2]
[361987076,1747926633046,-315.0,0.000203,2]
[361987078,1747926633058,-315.0,0.000203,2]
[361987080,1747926633067,-315.0,0.000203,2]
[361987082,1747926633079,-315.0,0.000203,2]
[361987084,1747926633089,-315.0,0.000203,2]
[361987086,1747926633099,-315.0,0.000203,2]
[361987088,1747926633109,-315.0,0.000203,2]
[361987091,1747926633120,-315.0,0.000203,2]
[361987093,1747926633130,-315.0,0.000203,2]
[361987095,1747926633140,-315.0,0.000203,2]
[361987097,1747926633151,-315.0,0.000203,2]
[361987099,1747926633161,-315.0,0.000203,2]
[361987101,1747926633171,-315.0,0.000203,2]
[361987103,1747926633181,-315.0,0.000203,2]
[361987105,1747926633190,-321.0,0.000203,2]
[361987107,1747926633200,-168.0,0.000203,2]
[361987109,1747926633210,-168.0,0.000203,2]
[361987110,1747926633219,-168.0,0.000203,2]
[361987112,1747926633229,-168.0,0.000203,2]
[361987115,1747926633239,-168.0,0.000203,2]
[361987116,1747926633249,-168.0,0.000203,2]
[361987119,1747926633259,-168.0,0.000203,2]
[361987121,1747926633268,-170.54135096,0.000203,2]
[361987123,1747926633278,-212.4501065,0.000203,3]
[361987124,1747926633288,-12485.19909955,0.000203,3]
[361987127,1747926633298,-4939.31440181,0.000203,3]
[361987129,1747926633313,-4939.31440167,0.000203,3]
[361987131,1747926633322,-4939.31440167,0.000203,3]
[361987133,1747926633333,-4939.31440167,0.000203,3]
[361987135,1747926633343,-4939.31440167,0.000203,3]
[361987137,1747926633354,-4939.31440167,0.000203,3]
[361987139,1747926633364,-4939.31440167,0.000203,3]
[361987141,1747926633374,-315.0,0.000203,2]
[361987143,1747926633386,-315.0,0.000203,2]
[361987144,1747926633396,-315.0,0.000203,2]
[361987146,1747926633406,-315.0,0.000203,2]
[361987149,1747926633416,-315.0,0.000203,2]
[361987151,1747926633427,-315.0,0.000203,2]
[361987153,1747926633437,-315.0,0.000203,2]
[361987155,1747926633447,-315.0,0.000203,2]
[361987156,1747926633458,-5647.28161756,0.0002033,2]
[361987158,1747926633469,-4939.31440167,0.00020348,3]
[361987160,1747926633480,-500.0,0.00020414,2]
[361987162,1747926633491,-621.80784736,0.00020417,3]
[361987165,1747926633501,-500.0,0.00020441,2]
[361987166,1747926633511,-514.04115382,0.00020469,2]
[361987169,1747926633522,-4939.31440167,0.00020555,3]
[361987171,1747926633532,-250.0,0.00020613,2]